fUST/lending_fUST_20260513
["ID","MTS","AMOUNT","RATE_DAILY","PERIOD"]
[422176680,1778650239000,-2546.54,0.00010958,2]
[422176704,1778650239000,-525.71,0.00010958,2]
[422176688,1778650239000,-500.0,0.00010958,2]
[422176685,1778650239000,-500.0,0.00010958,2]
[422176690,1778650239000,-639.05,0.00010958,2]
[422176687,1778650239000,-500.0,0.00010958,2]
[422176683,1778650239000,-1198.68,0.00010958,2]
[422176684,1778650239000,-500.0,0.00010958,2]
[422176689,1778650239000,-647.16,0.00010958,2]
[422176696,1778650239000,-432.08712675,0.00010958,2]
[422176686,1778650239000,-500.0,0.00010958,2]
[422176698,1778650239000,-500.0,0.00010958,2]
[422176694,1778650239000,-931.17,0.00010958,2]
[422176692,1778650239000,-500.0,0.00010958,2]
[422176693,1778650239000,-1291.21,0.00010958,2]
[422176697,1778650239000,-362.73684609,0.00010958,2]
[422176699,1778650239000,-500.0,0.00010958,2]
[422176703,1778650239000,-512.75673618,0.00010958,2]
[422176691,1778650239000,-803.33,0.00010958,2]
[422176701,1778650239000,-500.0,0.00010958,2]
[422176700,1778650239000,-1038.61,0.00010958,2]
[422176702,1778650239000,-2375.19,0.00010958,2]
[422176769,1778650240000,-6898.9,0.00010958,2]
[422176777,1778650240000,-2117.75,0.00010958,2]
[422176774,1778650240000,-500.0,0.00010958,2]
[422176772,1778650240000,-4706.17,0.00010958,2]
[422176773,1778650240000,-5412.13,0.00010958,2]
[422176768,1778650240000,-2315.92,0.00010958,2]
[422176766,1778650240000,-696.39,0.00010958,2]
[422176771,1778650240000,-500.0,0.00010958,2]
[422176767,1778650240000,-2471.42,0.00010958,2]
[422176764,1778650240000,-1833.17,0.00010958,2]
[422176770,1778650240000,-500.0,0.00010958,2]
[422176787,1778650240000,-4330.45,0.00010958,2]
[422176792,1778650240000,-1718.38,0.00010958,2]
[422176776,1778650240000,-1173.76,0.00010958,2]
[422176779,1778650240000,-1762.84,0.00010958,2]
[422176788,1778650240000,-1831.96,0.00010958,2]
[422176782,1778650240000,-500.0,0.00010958,2]
[422176780,1778650240000,-500.0,0.00010958,2]
[422176781,1778650240000,-5037.97,0.00010958,2]
[422176785,1778650240000,-500.0,0.00010958,2]
[422176786,1778650240000,-37233.01,0.00010958,2]
[422176784,1778650240000,-500.0,0.00010958,2]
[422176783,1778650240000,-500.0,0.00010958,2]
[422176789,1778650240000,-878.52,0.00010958,2]
[422176775,1778650240000,-870.14,0.00010958,2]
[422176778,1778650240000,-500.0,0.00010958,2]
[422176765,1778650240000,-171.78395266,0.00010958,2]
[422176749,1778650240000,-1646.33,0.00010958,2]
[422176761,1778650240000,-538.51,0.00010958,2]
[422176797,1778650240000,-603.74,0.00010958,2]
[422176735,1778650240000,-647.79,0.00010958,2]
[422176737,1778650240000,-748.26,0.00010958,2]
[422176736,1778650240000,-500.0,0.00010958,2]
[422176744,1778650240000,-500.0,0.00010958,2]
[422176743,1778650240000,-500.0,0.00010958,2]
[422176748,1778650240000,-500.0,0.00010958,2]
[422176740,1778650240000,-500.0,0.00010958,2]
[422176741,1778650240000,-643.48,0.00010958,2]
[422176746,1778650240000,-500.0,0.00010958,2]
[422176739,1778650240000,-1441.07,0.00010958,2]
[422176750,1778650240000,-2152.85,0.00010958,2]
[422176759,1778650240000,-500.0,0.00010958,2]
[422176747,1778650240000,-2810.6,0.00010958,2]
[422176738,1778650240000,-522.39,0.00010958,2]
[422176752,1778650240000,-500.0,0.00010958,2]
[422176751,1778650240000,-500.0,0.00010958,2]
[422176762,1778650240000,-827.41,0.00010958,2]
[422176763,1778650240000,-2169.55,0.00010958,2]
[422176757,1778650240000,-500.0,0.00010958,2]
[422176755,1778650240000,-2498.34,0.00010958,2]
[422176756,1778650240000,-500.0,0.00010958,2]
[422176753,1778650240000,-6195.89,0.00010958,2]
[422176760,1778650240000,-500.0,0.00010958,2]
[422176754,1778650240000,-2049.75,0.00010958,2]
[422176758,1778650240000,-1153.28,0.00010958,2]
[422176742,1778650240000,-1511.87,0.00010958,2]
[422176798,1778650240000,-2320.22,0.00010958,2]
[422176795,1778650240000,-3132.51,0.00010958,2]
[422176794,1778650240000,-942.17,0.00010958,2]
[422176823,1778650240000,-866.44,0.00011109,2]
[422176825,1778650240000,-896.83,0.00011154,2]
[422176828,1778650240000,-500.0,0.00011231,2]
[422176822,1778650240000,-10002.38000935,0.00011107,2]
[422176830,1778650240000,-635.17,0.00011232,2]
[422176842,1778650240000,-944.11,0.00011232,2]
[422176837,1778650240000,-1516.1,0.00011232,2]
[422176832,1778650240000,-500.0,0.00011232,2]
[422176834,1778650240000,-1162.75,0.00011232,2]
[422176838,1778650240000,-500.0,0.00011232,2]
[422176839,1778650240000,-500.0,0.00011232,2]
[422176840,1778650240000,-500.0,0.00011232,2]
[422176819,1778650240000,-443.0,0.00011011,2]
[422176833,1778650240000,-500.0,0.00011232,2]
[422176835,1778650240000,-500.0,0.00011232,2]
[422176829,1778650240000,-3586.802,0.00011232,2]
[422176843,1778650240000,-500.0,0.00011232,2]
[422176845,1778650240000,-2546.54,0.00011232,2]
[422176846,1778650240000,-500.0,0.00011232,2]
[422176844,1778650240000,-500.0,0.00011232,2]
[422176848,1778650240000,-1198.68,0.00011232,2]
[422176847,1778650240000,-500.0,0.00011232,2]
[422176850,1778650240000,-500.0,0.00011232,2]
[422176849,1778650240000,-500.0,0.00011232,2]
[422176852,1778650240000,-500.0,0.00011232,2]
[422176851,1778650240000,-195.47555846,0.00011232,2]
[422176831,1778650240000,-500.0,0.00011232,2]
[422176827,1778650240000,-151.0,0.000112,2]
[422176836,1778650240000,-500.9031,0.00011232,2]
[422176821,1778650240000,-151.0,0.000111,2]
[422176824,1778650240000,-948.04,0.00011154,2]
[422176800,1778650240000,-500.65,0.00010958,2]
[422176796,1778650240000,-500.0,0.00010958,2]
[422176793,1778650240000,-1755.54,0.00010958,2]
[422176790,1778650240000,-7267.87,0.00010958,2]
[422176801,1778650240000,-3586.12,0.00010958,2]
[422176791,1778650240000,-1423.52,0.00010958,2]
[422176799,1778650240000,-2154.87,0.00010958,2]
[422176803,1778650240000,-677.76,0.00010958,2]
[422176814,1778650240000,-200.0,0.00011,2]
[422176813,1778650240000,-151.0,0.00011,2]
[422176805,1778650240000,-500.0,0.00010958,2]
[422176804,1778650240000,-2305.87,0.00010958,2]
[422176802,1778650240000,-6210.28,0.00010958,2]
[422176826,1778650240000,-151.0,0.000112,2]
[422176820,1778650240000,-754.32,0.00011052,2]
[422176806,1778650240000,-5470.01,0.00010958,2]
[422176816,1778650240000,-649.964,0.00011011,2]
[422176818,1778650240000,-185.0,0.00011011,2]
[422176817,1778650240000,-563.0,0.00011011,2]
[422176812,1778650240000,-161.4,0.00011,2]
[422176815,1778650240000,-729.45,0.00011004,2]
[422176810,1778650240000,-1563.0,0.00010959,2]
[422176808,1778650240000,-3340.11,0.00010958,2]
[422176809,1778650240000,-243.76543529,0.00010959,3]
[422176807,1778650240000,-1674.6,0.00010958,2]
[422176811,1778650240000,-500.0,0.00011,2]
[422176881,1778650241000,-500.0,0.00011232,2]
[422176895,1778650241000,-643.48,0.00011232,2]
[422176893,1778650241000,-1441.07,0.00011232,2]
[422176892,1778650241000,-522.39,0.00011232,2]
[422176886,1778650241000,-500.0,0.00011232,2]
[422176885,1778650241000,-500.0,0.00011232,2]
[422176888,1778650241000,-1117.92,0.00011232,2]
[422176887,1778650241000,-500.0,0.00011232,2]
[422176891,1778650241000,-748.26,0.00011232,2]
[422176889,1778650241000,-647.79,0.00011232,2]
[422176894,1778650241000,-500.0,0.00011232,2]
[422176883,1778650241000,-500.0,0.00011232,2]
[422176896,1778650241000,-1511.87,0.00011232,2]
[422176908,1778650241000,-2498.34,0.00011232,2]
[422176897,1778650241000,-500.0,0.00011232,2]
[422176902,1778650241000,-1646.33,0.00011232,2]
[422176899,1778650241000,-500.0,0.00011232,2]
[422176904,1778650241000,-2152.85,0.00011232,2]
[422176901,1778650241000,-500.0,0.00011232,2]
[422176903,1778650241000,-500.0,0.00011232,2]
[422176900,1778650241000,-2810.6,0.00011232,2]
[422176906,1778650241000,-6195.89,0.00011232,2]
[422176916,1778650241000,-2169.55,0.00011232,2]
[422176917,1778650241000,-1833.17,0.00011232,2]
[422176905,1778650241000,-500.0,0.00011232,2]
[422176907,1778650241000,-2049.75,0.00011232,2]
[422176890,1778650241000,-500.0,0.00011232,2]
[422176898,1778650241000,-500.0,0.00011232,2]
[422176884,1778650241000,-2468.22,0.00011232,2]
[422176854,1778650241000,-647.16,0.00011232,2]
[422176882,1778650241000,-500.0,0.00011232,2]
[422176910,1778650241000,-282.72667986,0.00011232,2]
[422176853,1778650241000,-500.0,0.00011232,2]
[422176866,1778650241000,-1166.77,0.00011232,2]
[422176856,1778650241000,-803.33,0.00011232,2]
[422176867,1778650241000,-500.0,0.00011232,2]
[422176855,1778650241000,-639.05,0.00011232,2]
[422176859,1778650241000,-931.17,0.00011232,2]
[422176857,1778650241000,-500.0,0.00011232,2]
[422176858,1778650241000,-1291.21,0.00011232,2]
[422176860,1778650241000,-500.0,0.00011232,2]
[422176862,1778650241000,-1038.61,0.00011232,2]
[422176864,1778650241000,-2375.19,0.00011232,2]
[422176863,1778650241000,-500.0,0.00011232,2]
[422176861,1778650241000,-500.0,0.00011232,2]
[422176865,1778650241000,-525.71,0.00011232,2]
[422176879,1778650241000,-1486.18,0.00011232,2]
[422176868,1778650241000,-500.0,0.00011232,2]
[422176877,1778650241000,-500.0,0.00011232,2]
[422176871,1778650241000,-644.83,0.00011232,2]
[422176870,1778650241000,-960.84,0.00011232,2]
[422176874,1778650241000,-2452.31,0.00011232,2]
[422176876,1778650241000,-500.0,0.00011232,2]
[422176873,1778650241000,-500.0,0.00011232,2]
[422176878,1778650241000,-500.0,0.00011232,2]
[422176875,1778650241000,-1552.73,0.00011232,2]
[422176872,1778650241000,-500.0,0.00011232,2]
[422176869,1778650241000,-500.0,0.00011232,2]
[422176880,1778650241000,-1189.48,0.00011232,2]
[422176915,1778650241000,-827.41,0.00011232,2]
[422176974,1778650241000,-500.0,0.00011506,2]
[422176914,1778650241000,-538.51,0.00011232,2]
[422176954,1778650241000,-6210.28,0.00011232,2]
[422176955,1778650241000,-677.76,0.00011232,2]
[422176947,1778650241000,-3132.51,0.00011232,2]
[422176948,1778650241000,-500.0,0.00011232,2]
[422176949,1778650241000,-603.74,0.00011232,2]
[422176950,1778650241000,-2320.22,0.00011232,2]
[422176953,1778650241000,-3586.12,0.00011232,2]
[422176952,1778650241000,-500.65,0.00011232,2]
[422176951,1778650241000,-2154.87,0.00011232,2]
[422176957,1778650241000,-500.0,0.00011232,2]
[422176962,1778650241000,-151.0,0.000113,2]
[422176959,1778650241000,-1674.6,0.00011232,2]
[422176956,1778650241000,-2305.87,0.00011232,2]
[422176958,1778650241000,-5470.01,0.00011232,2]
[422176963,1778650241000,-174.9932,0.00011369,2]
[422176961,1778650241000,-488.178,0.00011276,2]
[422176960,1778650241000,-3340.11,0.00011232,2]
[422176965,1778650241000,-152.0,0.00011428,2]
[422176966,1778650241000,-151.0,0.000115,2]
[422176964,1778650241000,-151.0,0.000114,2]
[422176968,1778650241000,-152.0,0.00011504,7]
[422176971,1778650241000,-3586.802,0.00011506,2]
[422176967,1778650241000,-151.0,0.000115,2]
[422176970,1778650241000,-511.52856874,0.00011505,2]
[422176912,1778650241000,-500.0,0.00011232,2]
[422176973,1778650241000,-500.0,0.00011506,2]
[422176972,1778650241000,-635.17,0.00011506,2]
[422176946,1778650241000,-942.17,0.00011232,2]
[422176944,1778650241000,-1718.38,0.00011232,2]
[422176969,1778650241000,-152.0,0.00011504,7]
[422176941,1778650241000,-878.52,0.00011232,2]
[422176945,1778650241000,-1755.54,0.00011232,2]
[422176909,1778650241000,-500.0,0.00011232,2]
[422176913,1778650241000,-500.0,0.00011232,2]
[422176919,1778650241000,-2471.42,0.00011232,2]
[422176930,1778650241000,-500.0,0.00011232,2]
[422176929,1778650241000,-2117.75,0.00011232,2]
[422176918,1778650241000,-696.39,0.00011232,2]
[422176920,1778650241000,-2315.92,0.00011232,2]
[422176922,1778650241000,-500.0,0.00011232,2]
[422176921,1778650241000,-6898.9,0.00011232,2]
[422176927,1778650241000,-870.14,0.00011232,2]
[422176926,1778650241000,-500.0,0.00011232,2]
[422176925,1778650241000,-5412.13,0.00011232,2]
[422176923,1778650241000,-4706.17,0.00011232,2]
[422176911,1778650241000,-1153.28,0.00011232,2]
[422176928,1778650241000,-1173.76,0.00011232,2]
[422176924,1778650241000,-500.0,0.00011232,2]
[422176937,1778650241000,-500.0,0.00011232,2]
[422176935,1778650241000,-500.0,0.00011232,2]
[422176936,1778650241000,-500.0,0.00011232,2]
[422176940,1778650241000,-1831.96,0.00011232,2]
[422176939,1778650241000,-4330.45,0.00011232,2]
[422176934,1778650241000,-500.0,0.00011232,2]
[422176932,1778650241000,-500.0,0.00011232,2]
[422176933,1778650241000,-5037.97,0.00011232,2]
[422176938,1778650241000,-37233.01,0.00011232,2]
[422176942,1778650241000,-7267.87,0.00011232,2]
[422176943,1778650241000,-1423.52,0.00011232,2]
[422176931,1778650241000,-1762.84,0.00011232,2]
[422177004,1778650242000,-2375.19,0.00011506,2]
[422177010,1778650242000,-960.84,0.00011506,2]
[422177006,1778650242000,-1166.77,0.00011506,2]
[422177013,1778650242000,-500.0,0.00011506,2]
[422177005,1778650242000,-525.71,0.00011506,2]
[422177007,1778650242000,-500.0,0.00011506,2]
[422177014,1778650242000,-2452.31,0.00011506,2]
[422177011,1778650242000,-644.83,0.00011506,2]
[422177012,1778650242000,-163.91049689,0.00011506,2]
[422177009,1778650242000,-500.0,0.00011506,2]
[422177008,1778650242000,-500.0,0.00011506,2]
[422177003,1778650242000,-500.0,0.00011506,2]
[422177025,1778650242000,-508.63529989,0.00011506,2]
[422177021,1778650242000,-500.0,0.00011506,2]
[422177022,1778650242000,-500.0,0.00011506,2]
[422177023,1778650242000,-500.0,0.00011506,2]
[422177015,1778650242000,-1552.73,0.00011506,2]
[422177024,1778650242000,-2468.22,0.00011506,2]
[422177017,1778650242000,-500.0,0.00011506,2]
[422177019,1778650242000,-1486.18,0.00011506,2]
[422177018,1778650242000,-500.0,0.00011506,2]
[422177020,1778650242000,-1189.48,0.00011506,2]
[422177026,1778650242000,-275.31490014,0.00011506,2]
[422177002,1778650242000,-1038.61,0.00011506,2]
[422177016,1778650242000,-500.0,0.00011506,2]
[422177000,1778650242000,-500.0,0.00011506,2]
[422176986,1778650242000,-2546.54,0.00011506,2]
[422176999,1778650242000,-931.17,0.00011506,2]
[422177028,1778650242000,-1117.92,0.00011506,2]
[422176978,1778650242000,-500.9031,0.00011506,2]
[422176976,1778650242000,-1162.75,0.00011506,2]
[422176977,1778650242000,-500.0,0.00011506,2]
[422176975,1778650242000,-500.0,0.00011506,2]
[422176980,1778650242000,-500.0,0.00011506,2]
[422176979,1778650242000,-1516.1,0.00011506,2]
[422176981,1778650242000,-500.0,0.00011506,2]
[422176982,1778650242000,-500.0,0.00011506,2]
[422176987,1778650242000,-500.0,0.00011506,2]
[422176984,1778650242000,-500.0,0.00011506,2]
[422176998,1778650242000,-1291.21,0.00011506,2]
[422176988,1778650242000,-500.0,0.00011506,2]
[422176983,1778650242000,-944.11,0.00011506,2]
[422176985,1778650242000,-500.0,0.00011506,2]
[422176993,1778650242000,-500.0,0.00011506,2]
[422176992,1778650242000,-500.0,0.00011506,2]
[422176990,1778650242000,-500.0,0.00011506,2]
[422176991,1778650242000,-500.0,0.00011506,2]
[422177001,1778650242000,-500.0,0.00011506,2]
[422176995,1778650242000,-639.05,0.00011506,2]
[422176996,1778650242000,-803.33,0.00011506,2]
[422176994,1778650242000,-647.16,0.00011506,2]
[422176997,1778650242000,-500.0,0.00011506,2]
[422176989,1778650242000,-1198.68,0.00011506,2]
[422177030,1778650242000,-500.0,0.00011506,2]
[422177079,1778650242000,-1831.96,0.00011506,2]
[422177034,1778650242000,-589.7457409,0.00011506,2]
[422177059,1778650242000,-2315.92,0.00011506,2]
[422177063,1778650242000,-500.0,0.00011506,2]
[422177061,1778650242000,-245.8725355,0.00011506,2]
[422177064,1778650242000,-5412.13,0.00011506,2]
[422177066,1778650242000,-870.14,0.00011506,2]
[422177060,1778650242000,-6898.9,0.00011506,2]
[422177069,1778650242000,-500.0,0.00011506,2]
[422177065,1778650242000,-500.0,0.00011506,2]
[422177067,1778650242000,-1173.76,0.00011506,2]
[422177070,1778650242000,-1762.84,0.00011506,2]
[422177068,1778650242000,-2117.75,0.00011506,2]
[422177062,1778650242000,-4706.17,0.00011506,2]
[422177074,1778650242000,-282.10567005,0.00011506,2]
[422177072,1778650242000,-5037.97,0.00011506,2]
[422177078,1778650242000,-4330.45,0.00011506,2]
[422177076,1778650242000,-500.0,0.00011506,2]
[422177077,1778650242000,-37233.01,0.00011506,2]
[422177082,1778650242000,-1423.52,0.00011506,2]
[422177075,1778650242000,-500.0,0.00011506,2]
[422177083,1778650242000,-1718.38,0.00011506,2]
[422177080,1778650242000,-878.52,0.00011506,2]
[422177081,1778650242000,-7267.87,0.00011506,2]
[422177084,1778650242000,-1755.54,0.00011506,2]
[422177031,1778650242000,-748.26,0.00011506,2]
[422177073,1778650242000,-500.0,0.00011506,2]
[422177058,1778650242000,-2471.42,0.00011506,2]
[422177071,1778650242000,-599.1227511,0.00011506,2]
[422177055,1778650242000,-2169.55,0.00011506,2]
[422177029,1778650242000,-647.79,0.00011506,2]
[422177057,1778650242000,-696.39,0.00011506,2]
[422177033,1778650242000,-1441.07,0.00011506,2]
[422177035,1778650242000,-643.48,0.00011506,2]
[422177036,1778650242000,-1511.87,0.00011506,2]
[422177027,1778650242000,-500.0,0.00011506,2]
[422177032,1778650242000,-522.39,0.00011506,2]
[422177037,1778650242000,-500.0,0.00011506,2]
[422177039,1778650242000,-500.0,0.00011506,2]
[422177040,1778650242000,-2810.6,0.00011506,2]
[422177038,1778650242000,-500.0,0.00011506,2]
[422177041,1778650242000,-500.0,0.00011506,2]
[422177043,1778650242000,-500.0,0.00011506,2]
[422177047,1778650242000,-2049.75,0.00011506,2]
[422177042,1778650242000,-1646.33,0.00011506,2]
[422177053,1778650242000,-538.51,0.00011506,2]
[422177056,1778650242000,-1833.17,0.00011506,2]
[422177054,1778650242000,-827.41,0.00011506,2]
[422177049,1778650242000,-500.0,0.00011506,2]
[422177051,1778650242000,-500.0,0.00011506,2]
[422177052,1778650242000,-500.0,0.00011506,2]
[422177050,1778650242000,-1153.28,0.00011506,2]
[422177046,1778650242000,-6195.89,0.00011506,2]
[422177044,1778650242000,-2152.85,0.00011506,2]
[422177045,1778650242000,-500.0,0.00011506,2]
[422177048,1778650242000,-2498.34,0.00011506,2]
[422177132,1778650243000,-38000.0,0.0001178,2]
[422177123,1778650243000,-2540.012046,0.0001176,2]
[422177124,1778650243000,-4920.024093,0.0001176,2]
[422177126,1778650243000,-38000.0,0.00011771,2]
[422177121,1778650243000,-243.039778,0.0001176,2]
[422177129,1778650243000,-31499.93501332,0.0001178,2]
[422177127,1778650243000,-3586.802,0.0001178,2]
[422177125,1778650243000,-38000.0,0.00011762,2]
[422177119,1778650243000,-152.0,0.00011707,2]
[422177122,1778650243000,-160.0,0.0001176,2]
[422177131,1778650243000,-38000.0,0.0001178,2]
[422177120,1778650243000,-1125.77746165,0.0001176,2]
[422177142,1778650243000,-38000.0,0.0001178,2]
[422177148,1778650243000,-500.0,0.0001178,2]
[422177133,1778650243000,-635.17,0.0001178,2]
[422177145,1778650243000,-500.0,0.0001178,2]
[422177135,1778650243000,-500.0,0.0001178,2]
[422177134,1778650243000,-500.0,0.0001178,2]
[422177138,1778650243000,-1162.75,0.0001178,2]
[422177141,1778650243000,-1516.1,0.0001178,2]
[422177139,1778650243000,-500.0,0.0001178,2]
[422177140,1778650243000,-500.9031,0.0001178,2]
[422177146,1778650243000,-500.0,0.0001178,2]
[422177151,1778650243000,-500.0,0.0001178,2]
[422177149,1778650243000,-500.0,0.0001178,2]
[422177147,1778650243000,-944.11,0.0001178,2]
[422177117,1778650243000,-151.0,0.000117,2]
[422177143,1778650243000,-500.0,0.0001178,2]
[422177115,1778650243000,-151.0,0.000117,2]
[422177086,1778650243000,-3132.51,0.00011506,2]
[422177110,1778650243000,-1000.0,0.00011609,2]
[422177087,1778650243000,-500.0,0.00011506,2]
[422177088,1778650243000,-603.74,0.00011506,2]
[422177089,1778650243000,-2320.22,0.00011506,2]
[422177157,1778650243000,-500.0,0.0001178,2]
[422177085,1778650243000,-942.17,0.00011506,2]
[422177095,1778650243000,-2305.87,0.00011506,2]
[422177090,1778650243000,-2154.87,0.00011506,2]
[422177091,1778650243000,-500.65,0.00011506,2]
[422177098,1778650243000,-1674.6,0.00011506,2]
[422177093,1778650243000,-6210.28,0.00011506,2]
[422177099,1778650243000,-3340.11,0.00011506,2]
[422177101,1778650243000,-152.0,0.00011508,7]
[422177097,1778650243000,-5470.01,0.00011506,2]
[422177111,1778650243000,-492.0,0.00011609,2]
[422177100,1778650243000,-1563.0,0.00011507,2]
[422177096,1778650243000,-500.0,0.00011506,2]
[422177094,1778650243000,-677.76,0.00011506,2]
[422177103,1778650243000,-10020.98605066,0.00011514,2]
[422177106,1778650243000,-152.0,0.00011547,7]
[422177114,1778650243000,-400.0,0.0001169,4]
[422177104,1778650243000,-152.0,0.00011543,7]
[422177105,1778650243000,-152.0,0.00011543,7]
[422177102,1778650243000,-152.0,0.00011508,7]
[422177113,1778650243000,-800.0,0.0001169,3]
[422177107,1778650243000,-152.0,0.00011547,7]
[422177112,1778650243000,-800.0,0.0001169,2]
[422177109,1778650243000,-151.0,0.000116,2]
[422177108,1778650243000,-152.0,0.00011561,7]
[422177092,1778650243000,-3586.12,0.00011506,2]
[422177150,1778650243000,-2546.54,0.0001178,2]
[422177137,1778650243000,-500.0,0.0001178,2]
[422177156,1778650243000,-500.0,0.0001178,2]
[422177186,1778650243000,-500.0,0.0001178,2]
[422177197,1778650243000,-643.48,0.0001178,2]
[422177196,1778650243000,-1441.07,0.0001178,2]
[422177189,1778650243000,-500.0,0.0001178,2]
[422177195,1778650243000,-38000.0,0.0001178,2]
[422177192,1778650243000,-500.0,0.0001178,2]
[422177194,1778650243000,-522.39,0.0001178,2]
[422177191,1778650243000,-647.79,0.0001178,2]
[422177193,1778650243000,-748.26,0.0001178,2]
[422177190,1778650243000,-1117.92,0.0001178,2]
[422177198,1778650243000,-1511.87,0.0001178,2]
[422177201,1778650243000,-500.0,0.0001178,2]
[422177200,1778650243000,-500.0,0.0001178,2]
[422177188,1778650243000,-2468.22,0.0001178,2]
[422177207,1778650243000,-500.0,0.0001178,2]
[422177209,1778650243000,-2049.75,0.0001178,2]
[422177202,1778650243000,-2810.6,0.0001178,2]
[422177206,1778650243000,-2152.85,0.0001178,2]
[422177203,1778650243000,-500.0,0.0001178,2]
[422177205,1778650243000,-469.62028211,0.0001178,2]
[422177204,1778650243000,-1646.33,0.0001178,2]
[422177211,1778650243000,-500.0,0.0001178,2]
[422177210,1778650243000,-2498.34,0.0001178,2]
[422177213,1778650243000,-500.0,0.0001178,2]
[422177212,1778650243000,-1153.28,0.0001178,2]
[422177214,1778650243000,-500.0,0.0001178,2]
[422177215,1778650243000,-538.51,0.0001178,2]
[422177152,1778650243000,-500.0,0.0001178,2]
[422177208,1778650243000,-6195.89,0.0001178,2]
[422177187,1778650243000,-500.0,0.0001178,2]
[422177199,1778650243000,-500.0,0.0001178,2]
[422177177,1778650243000,-500.0,0.0001178,2]
[422177155,1778650243000,-500.0,0.0001178,2]
[422177185,1778650243000,-500.0,0.0001178,2]
[422177154,1778650243000,-500.0,0.0001178,2]
[422177171,1778650243000,-1166.77,0.0001178,2]
[422177170,1778650243000,-525.71,0.0001178,2]
[422177169,1778650243000,-2375.19,0.0001178,2]
[422177158,1778650243000,-647.16,0.0001178,2]
[422177165,1778650243000,-500.0,0.0001178,2]
[422177164,1778650243000,-931.17,0.0001178,2]
[422177162,1778650243000,-500.0,0.0001178,2]
[422177161,1778650243000,-803.33,0.0001178,2]
[422177160,1778650243000,-639.05,0.0001178,2]
[422177163,1778650243000,-1291.21,0.0001178,2]
[422177167,1778650243000,-1038.61,0.0001178,2]
[422177153,1778650243000,-1198.68,0.0001178,2]
[422177168,1778650243000,-500.0,0.0001178,2]
[422177166,1778650243000,-500.0,0.0001178,2]
[422177175,1778650243000,-960.84,0.0001178,2]
[422177184,1778650243000,-1189.48,0.0001178,2]
[422177180,1778650243000,-500.0,0.0001178,2]
[422177181,1778650243000,-500.0,0.0001178,2]
[422177178,1778650243000,-2452.31,0.0001178,2]
[422177174,1778650243000,-500.0,0.0001178,2]
[422177182,1778650243000,-500.0,0.0001178,2]
[422177179,1778650243000,-1552.73,0.0001178,2]
[422177172,1778650243000,-627.5225401,0.0001178,2]
[422177183,1778650243000,-1486.18,0.0001178,2]
[422177176,1778650243000,-644.83,0.0001178,2]
[422177173,1778650243000,-500.0,0.0001178,2]
[422177228,1778650244000,-1173.76,0.0001178,2]
[422177234,1778650244000,-500.0,0.0001178,2]
[422177231,1778650244000,-1762.84,0.0001178,2]
[422177232,1778650244000,-5037.97,0.0001178,2]
[422177243,1778650244000,-1755.54,0.0001178,2]
[422177230,1778650244000,-500.0,0.0001178,2]